Cogmind - Beta 13 @@@ ROGUE MODE // 2024.05.15 @ 02:32:20 Player: CanadianCogs Result: Destroyed by Y-45 Defender with Beam Rifle Performance ------------- Evolutions (2) 1000 Regions Visited (5) 1000 Robots Destroyed (20) 100 Value Destroyed (603) 603 Prototype IDs (0) 0 Alien Tech Used (0) 0 Bonus (278) 278 TOTAL SCORE: 2981 Bonus ------- High Alert Combat Kills 28 Follower Combat Kills 50 Entered Garrisons 200 Cogmind --------- Core Integrity 0/550 Matter 6/300 Energy 24/100 System Corruption 0% Temperature Cool (9) Movement Core (50) Location -8/Garrison Parts ------- > --- POWER (1) -------- (None) > --- PROPULSION (4) --- (None) > --- UTILITY (4) ------ (None) > --- WEAPON (2) ------- (None) > --- INVENTORY (5) ---- Actuator Array Peak State ------------ > --- POWER ------------ Light Nuclear Core > --- PROPULSION ------- Aluminum Leg Aluminum Leg Armored Wheel > --- UTILITY ---------- Improved Heat Sink Advanced Weight Redist. System ECM Suite Shield Generator > --- WEAPON ----------- Particle Gun High-powered Shotgun > --- INVENTORY -------- Ion Engine ECM Suite Shield Generator [Rating: 21] Favorites ----------- Power Ion Engine Engine Ion Engine Power Core Light Nuclear Core Propulsion Improved Aluminum Leg Leg Improved Aluminum Leg Wheel Wheel Hover Unit Airjet Utility Small Storage Unit Device Advanced Weight Redist. System Storage Small Storage Unit Protection Weapon Shielding Weapon Mining Laser Energy Gun Particle Gun Ballistic Gun Light Assault Rifle Ballistic Cannon Heavy Assault Cannon Special Weapon Mining Laser Build | -11 -10 -9 -9 -8 -8 ------- Run | Yrd Mat Mat Min Mat Gar Slots Evolved 4 | . . 2 . 2 . Power . | . . . . . . Propulsion 2 | . . 2 . . . Utility 2 | . . . . 2 . Weapon . | . . . . . . Parts Attached 41 | 7 1 5 3 21 4 Power 6 | 1 . 1 . 3 1 Engine 3 | 1 . 1 . . 1 Core 3 | . . . . 3 . Reactor . | . . . . . . Propulsion 11 | 2 . 3 1 5 . Treads . | . . . . . . Leg 6 | . . 3 1 2 . Wheel 4 | 2 . . . 2 . Hover 1 | . . . . 1 . Flight . | . . . . . . Utility 14 | 2 1 . 2 7 2 Device 9 | 1 . . 1 5 2 Storage 3 | 1 1 . . 1 . Processor . | . . . . . . Hackware . | . . . . . . Protection 2 | . . . 1 1 . Artifact . | . . . . . . Weapon 10 | 2 . 1 . 6 1 Energy Gun 3 | . . . . 3 . Energy Cannon . | . . . . . . Ballistic Gun 3 | 2 . . . 1 . Ballistic Cannon 3 | . . . . 2 1 Launcher . | . . . . . . Special Weapon 1 | . . 1 . . . Impact Weapon . | . . . . . . Slashing Weapon . | . . . . . . Piercing Weapon . | . . . . . . Special Melee Weapon . | . . . . . . Unidentified Prototypes . | . . . . . . Parts Lost 25 | . 6 . . 18 1 Power 4 | . 1 . . 3 . Propulsion 8 | . 2 . . 6 . Utility 6 | . 1 . . 5 . Weapon 7 | . 2 . . 4 1 Highest Loss Streak 10 | . 6 . . 10 1 To Critical Strikes . | . . . . . . Average Slot Usage (%) 70 | . 94 53 66 68 72 Engine 7 | . 12 11 11 1 9 Core 2 | . . . . 5 . Leg 16 | . . 32 33 10 . Wheel 9 | . 26 . . 9 18 Device 11 | . 12 . . 19 18 Storage 5 | . 14 . . 5 9 Protection 5 | . . . 10 5 9 Energy Gun 1 | . . . . 3 . Ballistic Gun 4 | . 26 . . 1 . Ballistic Cannon 2 | . . . . 5 9 Special Weapon 4 | . . 10 11 . . Naked Turns 2 | . 1 . . . 1 Heaviest Build 28 | 13 28 6 8 24 27 Greatest Support 58 | 20 20 39 49 58 22 Greatest Overweight (x) 2 | . 2 . . 2 1 Average Overweight (x) . | . . . . . . Largest Inventory Capacity 15 | 8 15 5 5 8 8 Average Capacity 7 | 7 14 5 5 6 7 Most Carried 9 | 5 9 4 5 8 6 Average Carried 3 | 1 3 . . 5 3 Final Capacity 8 | 8 5 5 5 8 5 Final Carried 7 | 2 5 . 3 7 1 Class Distribution -------------------- 74% | Mutant 25% | Scavenger-Mutant Dominant Class ---------------- Mutant | -10/Materials Mutant | -9/Materials Mutant | -9/Mines Scavenger-Mutant | -8/Materials Mutant | -8/Garrison Resources | -11 -10 -9 -9 -8 -8 ----------- Run | Yrd Mat Mat Min Mat Gar Matter Collected 581 | 194 36 . 98 210 43 Remotely . | . . . . . . Salvage Created 529 | 27 . . 37 422 43 Parts 29 | 3 . . 1 20 5 Haulers Intercepted . | . . . . . . Recyclers Shooed 1 | . . . . 1 . Parts Field Recycled . | . . . . . . Retrieved Matter . | . . . . . . Parts Self-Destructed . | . . . . . . Prevented . | . . . . . . Kills | -11 -10 -9 -9 -8 -8 ------- Run | Yrd Mat Mat Min Mat Gar Combat Hostiles Destroyed 13 | . . . . 12 1 Guns 6 | . . . . 6 . Cannons 5 | . . . . 4 1 AOE 2 | . . . . 2 . Classes Destroyed 8 | 1 . . 1 6 . Worker 1 | . . . . 1 . Builder 1 | . . . . 1 . Tunneler 2 | 1 . . . 1 . Recycler 2 | . . . 1 1 . Watcher 1 | . . . . 1 . Swarmer 3 | . . . . 3 . Grunt 8 | . . . . 8 . Sentry 2 | . . . . 1 1 Best Kill Streak 4 | 1 . . 1 4 1 Combat Bots Only 4 | . . . . 4 1 Max Kills in Single Turn 2 | 1 . . 1 2 1 Gunslinging . | . . . . . . Exploded 2 | . . . . 2 . Melee . | . . . . . . Uniques/NPCs Destroyed . | . . . . . . Combat | -11 -10 -9 -9 -8 -8 -------- Run | Yrd Mat Mat Min Mat Gar Hostile Shots Fired 298 | . 71 25 . 179 23 Missed 100 | . 21 14 . 57 8 Damage Taken 2870 | . 628 188 . 1887 167 Core 839 | . 238 47 . 506 48 Absorbed by Shields 97 | . . . . 44 53 Redirected to Shielding 39 | . . . . 35 4 Core Remaining (%) 64 | 100 4 . 88 . . Volleys Fired 84 | 2 12 1 4 59 6 Largest 2 | 2 2 1 1 2 1 Hottest 109 | 40 40 100 100 109 60 Shots Fired 110 | 4 24 1 4 71 6 Gun 66 | 4 24 . . 38 . Cannon 39 | . . . . 33 6 Launcher . | . . . . . . Special 5 | . . 1 4 . . Kinetic 87 | 4 24 . . 53 6 Thermal 23 | . . 1 4 18 . Explosive . | . . . . . . Electromagnetic . | . . . . . . Robot Hit Streak 10 | 1 3 . 1 10 3 Robot Miss Streak 6 | 3 6 . 2 4 2 Penetration Max . | . . . . . . Secondary Targets . | . . . . . . Shots Hit Robots 63 | 1 11 . 2 45 4 Core Hits 36 | 1 3 . 1 31 . Critical Kills 1 | 1 . . . . . Critical Parts Destroyed . | . . . . . . Critical Strikes 4 | 1 . . . 2 1 Destroy 1 | 1 . . . . . Blast 3 | . . . . 2 1 Melee Attacks . | . . . . . . Impact . | . . . . . . Slashing . | . . . . . . Piercing . | . . . . . . Sneak Attacks . | . . . . . . Combat Hostiles . | . . . . . . Follow-up Attacks . | . . . . . . Damage Inflicted 1889 | 6 125 . 48 1491 219 Guns 595 | 6 109 . . 480 . Cannons 988 | . . . . 769 219 Explosions 226 | . . . . 226 . Melee . | . . . . . . Ramming 32 | . 16 . . 16 . Kinetic 1390 | 6 109 . . 1056 219 Thermal 241 | . . . 48 193 . Explosive 226 | . . . . 226 . Electromagnetic . | . . . . . . Impact . | . . . . . . Slashing . | . . . . . . Piercing . | . . . . . . Highest Corruption 1 | . 1 . . . . Average Corruption 1 | . 1 . . . . Corruption Purged . | . . . . . . Corruption Blocked . | . . . . . . Overload Shots . | . . . . . . Overflow Damage 259 | . . . . 259 . Projectiles 157 | . . . . 157 . Explosions 102 | . . . . 102 . Melee . | . . . . . . Knockbacks 11 | . . . . 11 . Impact . | . . . . . . Kinetic 11 | . . . . 11 . Secondary . | . . . . . . Self-Inflicted Damage 185 | . 8 . . 177 . Shots 2 | . . . . 2 . Rammed 2 | . 1 . . 1 . Targets Rammed 9 | . 1 . . 8 . Kicked 7 | . . . . 7 . Crushed . | . . . . . . Highest Temperature 142 | . 7 8 8 142 48 Average Temperature 28 | . 6 5 5 35 15 Received Heat Transfer 1424 | . 351 63 . 951 59 Siege Activations . | . . . . . . Robots Corrupted . | . . . . . . Combat Hostiles . | . . . . . . Parts Fried . | . . . . . . Impact Corruptions . | . . . . . . Robots Melted . | . . . . . . Combat Hostiles . | . . . . . . Parts Melted 1 | . . . . 1 . Heat Transferred 569 | . . . 100 469 . Parts Sabotaged . | . . . . . . Parts Stolen . | . . . . . . Parts Stripped . | . . . . . . Power Chain Reactions . | . . . . . . Alert | -11 -10 -9 -9 -8 -8 ------- Run | Yrd Mat Mat Min Mat Gar Peak Influence 556 | 5 247 138 116 556 342 Initial 253 | . 3 85 53 44 253 Average 162 | 1 93 104 63 250 303 Maximum Alert Level 2 | . 1 . . 2 1 Low Security (%) 66 | 100 87 100 100 39 . Level 1 27 | . 12 . . 44 100 Level 2 6 | . . . . 15 . Level 3 . | . . . . . . Level 4 . | . . . . . . Level 5 . | . . . . . . High Security . | . . . . . . Max Security . | . . . . . . Squads Dispatched 14 | . 3 1 1 9 . Investigation 10 | . 2 . . 8 . Extermination . | . . . . . . Reinforcement 4 | . 1 1 1 1 . Assault . | . . . . . . Garrison . | . . . . . . Intercept . | . . . . . . Searches Triggered . | . . . . . . Construction Impeded 2 | . . . 1 1 . Haulers Reinforced . | . . . . . . Active Scanning Responses . | . . . . . . Cargo Convoy Interrupts . | . . . . . . Stealth | -11 -10 -9 -9 -8 -8 --------- Run | Yrd Mat Mat Min Mat Gar Distress Signals 4 | . 3 1 . . . Communications Jammed . | . . . . . . Distress Signals . | . . . . . . Times Spotted 60 | . 23 6 . 26 5 Peak Tracking Total 12 | . 12 7 . 7 7 Tactical Retreats 9 | . 5 . . 3 1 Traps | -11 -10 -9 -9 -8 -8 ------- Run | Yrd Mat Mat Min Mat Gar Traps Triggered 2 | . . 1 . 1 . Indirectly . | . . . . . . Trap Hack Attempts . | . . . . . . Triggered . | . . . . . . Disarmed . | . . . . . . Reprogrammed . | . . . . . . Reused . | . . . . . . Traps Extracted . | . . . . . . Installed . | . . . . . . Triggered . | . . . . . . Machines | -11 -10 -9 -9 -8 -8 ---------- Run | Yrd Mat Mat Min Mat Gar Machines Disabled 5 | . . . . 5 . Max in Single Turn 1 | . . . . 1 . Machines Repaired . | . . . . . . Machines Dismantled . | . . . . . . Machines Sabotaged . | . . . . . . Overloaded Fab Kills . | . . . . . . Hacking | -11 -10 -9 -9 -8 -8 --------- Run | Yrd Mat Mat Min Mat Gar Machines Accessed 14 | . 3 2 . 8 1 Terminals 12 | . 3 2 . 6 1 Fabricators . | . . . . . . Repair Stations . | . . . . . . Recycling Units 1 | . . . . 1 . Scanalyzers . | . . . . . . Garrison Access 1 | . . . . 1 . Total Hacks 49 | . 11 8 . 29 1 Successful 20 | . 5 3 . 11 1 Failed 29 | . 6 5 . 18 . Catastrophic 8 | . 2 1 . 5 . Database Lockouts . | . . . . . . Manual 50 | . 11 8 . 30 1 Terminals 44 | . 11 8 . 24 1 Fabricators . | . . . . . . Repair Stations . | . . . . . . Recycling Units 1 | . . . . 1 . Scanalyzers . | . . . . . . Garrison Access 4 | . . . . 4 . Terminal Hacks 8 | . 2 2 . 4 . Part Schematic 3 | . . . . 3 . Robot Schematic 4 | . 1 2 . 1 . Robot Analysis 1 | . 1 . . . . Fabricator Hacks . | . . . . . . Repair Station Hacks . | . . . . . . Recycling Unit Hacks . | . . . . . . Scanalyzer . | . . . . . . Garrison Access Hacks 1 | . . . . 1 . Unlock Access 1 | . . . . 1 . Unauthorized Hacks 11 | . 3 1 . 6 1 Terminals 9 | . 3 1 . 4 1 Botnet 8 | . 3 1 . 4 . Override 1 | . . . . . 1 Fabricators . | . . . . . . Repair Stations . | . . . . . . Recycling Units 1 | . . . . 1 . Tunnel 1 | . . . . 1 . Scanalyzers . | . . . . . . Garrison Access 1 | . . . . 1 . Broadcast 1 | . . . . 1 . Data Cores Recovered . | . . . . . . Used . | . . . . . . Hacking Detections 12 | . 3 2 . 7 . Full Trace Events 12 | . 3 2 . 7 . Feedback Events . | . . . . . . Feedback Blocked . | . . . . . . Robot Schematics Acquired 4 | . 1 2 . 1 . Robots Built . | . . . . . . Authchips . | . . . . . . Time . | . . . . . . Total Robot Build Rating . | . . . . . . Part Schematics Acquired 3 | . . . . 3 . Parts Built . | . . . . . . Authchips . | . . . . . . Time . | . . . . . . Total Part Build Rating . | . . . . . . Parts Repaired . | . . . . . . Time . | . . . . . . Parts Recycled . | . . . . . . Recycled Matter . | . . . . . . Retrieved Matter . | . . . . . . Retrieved Components . | . . . . . . Parts Scanalyzed . | . . . . . . Part Schematics Acquired . | . . . . . . Parts Damaged . | . . . . . . Bothacking | -11 -10 -9 -9 -8 -8 ------------ Run | Yrd Mat Mat Min Mat Gar Used RIF Installer . | . . . . . . Robots Hacked . | . . . . . . Non-combat . | . . . . . . Combat . | . . . . . . Robot Hacks Applied . | . . . . . . Relay Couplers Released . | . . . . . . Fabnet Peak Effective % . | . . . . . . Robots Rewired . | . . . . . . Allies Hacked . | . . . . . . Hacks Repelled . | . . . . . . Allies | -11 -10 -9 -9 -8 -8 -------- Run | Yrd Mat Mat Min Mat Gar Total Allies 3 | . . . 3 . . Largest Group 3 | . . . 3 3 . Highest-Rated Group 40 | . . . 40 40 . Highest-Rated Ally 16 | . . . 16 16 . Total Orders . | . . . . . . Ally Attacks 23 | . . . 13 10 . Total Damage 241 | . . . 133 108 . Kills 2 | . . . 2 . . Allies Corrupted . | . . . . . . Allies Melted 1 | . . . . 1 . Intel | -11 -10 -9 -9 -8 -8 ------- Run | Yrd Mat Mat Min Mat Gar Robot Analysis Total 1 | . 1 . . . . Derelict Logs Recovered 2 | . . . 2 . . Drone Launches . | . . . . . . Drone Recoveries . | . . . . . . Exploration | -11 -10 -9 -9 -8 -8 ------------- Run | Yrd Mat Mat Min Mat Gar Turns Passed 1546 | 48 228 149 389 608 124 Spaces Moved 1022 | 36 197 115 288 286 100 Core 25 | 7 4 . . 12 2 Treads . | . . . . . . Legs 470 | . . 115 288 67 . Wheels 521 | 29 193 . . 201 98 Hover 6 | . . . . 6 . Flight . | . . . . . . Fastest Speed 50 | 50 50 120 120 50 50 Average Speed 104 | 74 92 120 120 97 99 Slowest Speed 150 | 80 110 120 120 150 100 Overloaded Moves . | . . . . . . Propulsion Burnouts . | . . . . . . Robots Hopped . | . . . . . . Cave-ins Triggered . | . . . . . . Exploration Rate (%) 26 | 3 27 17 60 29 24 Regions Visited 5 Branch Regions 1 Pre-discovered Areas 2 | . . . 1 1 . Known Exits Taken 1 | . . . . 1 . Unknown Exits Taken 4 | 1 1 1 1 . . Scrap Searched 1 | . . . 1 . . Spaces Dug 1 | . . 1 . . . Terrain Destroyed 139 | . . 1 . 134 4 Melee . | . . . . . . Projectile 25 | . . 1 . 20 4 AOE 114 | . . . . 114 . Terrain Rammed . | . . . . . . Walls Destroyed . | . . . . . . Machines Disabled . | . . . . . . Actions | -11 -10 -9 -9 -8 -8 --------- Run | Yrd Mat Mat Min Mat Gar Total 1363 | 53 225 123 319 527 116 Wait 159 | . 2 3 19 130 5 Move 1018 | 35 196 114 287 286 100 Hop . | . . . . . . Pick Up 42 | 9 10 . 6 17 . Fast Attach 7 | . . . . 7 . Attach 33 | 7 1 5 3 13 4 Detach . | . . . . . . Swap 1 | . . . . 1 . Drop 10 | . 3 . . 6 1 Fire 84 | 2 12 1 4 59 6 Melee . | . . . . . . Ram 2 | . 1 . . 1 . Kick 7 | . . . . 7 . Crush . | . . . . . . Escape Stasis . | . . . . . . Rewire . | . . . . . . Trap . | . . . . . . Miscellaneous . | . . . . . . Route ------- -11/Scrapyard -10/Materials -9/Materials -9/Mines -8/Materials (discovered 3 exits: Fac / [*Sto] / Gar) -8/Garrison (discovered 3 exits: Mat x3) History --------- Turn | Location | Event 15 | -11/Scrapyard | Discovered new exit (range 14) 49 | -11/Scrapyard | Entered Materials 231 | -10/Materials | Discovered new exit (range 16) 261 | -10/Materials | Core integrity fell below 50% 275 | -10/Materials | Core integrity fell below 20% 276 | -10/Materials | Released all parts (1) 277 | -10/Materials | Entered another Materials area 277 | -9/Materials | Evolved 2 slots: Propulsion x2 302 | -9/Materials | Build established: Mutant 306 | -9/Materials | Lost 6 parts (1p2n1u2w) 381 | -9/Materials | Discovered new exit (range 15) 426 | -9/Materials | Entered Mines 427 | -9/Mines | Learned location of Storage (-8) 494 | -9/Mines | Learned Materials garrison access intel 675 | -9/Mines | Discovered new exit (range 5) 688 | -9/Mines | Assisted by bots powering up and referring to "LRC-V3" 815 | -9/Mines | Entered Materials 815 | -8/Materials | Accompanied by 3 allies 815 | -8/Materials | Evolved 2 slots: Utility x2 816 | -8/Materials | Identified exit to Factory 817 | -8/Materials | Loaded intel: 1 garrison access location 876 | -8/Materials | Discovered new exit (range 10) 882 | -8/Materials | Lost 3 allies 958 | -8/Materials | Core integrity fell below 50% 999 | -8/Materials | Lost 10 parts (1p5n2u2w) 1110 | -8/Materials | Core integrity fell below 20% 1423 | -8/Materials | Identified exit to Garrison 1423 | -8/Materials | Entered Garrison 1442 | -8/Garrison | Identified exit to Materials 1448 | -8/Garrison | Lost 3 parts (1p2u) 1503 | -8/Garrison | Triggered checkpoint 1546 | -8/Garrison | Released all parts (8) 1547 | -8/Garrison | Destroyed by Y-45 Defender with Beam Rifle Last Messages --------------- 01442_ Connecting with Garrison Terminal... >>Force(Override) SYSTEM_OVERRIDE[3] COORDINATES_EXTRACTED 01442_ ALERT: Suspicious activity at Terminal G002. Transmitting hostile system tracking data. 01513_ Y-45 Defender suffers critical hit (Blast). 01513_ Y-45 Defender destroyed. 01524_ Acquired 43 matter. 01540_ Slug penetrates Y-45 Defender. 01543_ Critical hit (Burn: +27). 01544_ Hvy. Assault Cannon destroyed. 01546_ Released Arm. Wheel. 01546_ Released Sml. Storage Unit. 01546_ Released Wheel. 01546_ Released Core Shielding. 01546_ Released Ion Engine. 01546_ Released ECM Suite. 01546_ Released Shield Generator. 01546_ Released Hvy. Assault Cannon. Map ----- +----------------------------------------------------+ | ?????????????????????????????????????????????????# | | ?????????????????????????????????????????????????# | | ?????????????????????????????????????????????????# | | ?????????????????????????????????????????????????# | | ?????????????????????????????????????????????????# | | ?????????????????????????????????????????????????# | | ?????????????????????????????????????????????????# | | ?????????????????????????????????????????????????# | | ?????????????????????????????????????????????????# | | ?????????????????????????????????????????????????# | | ?????????????????????????????????????????????????# | | ?????????????????????????????????????????????????# | | ????????????????????????????###################### | | ????????????????????????????# | | ????????????????????????????# | | ????????????????????????????# | | ????????????????????????????# ################## | | ????????????????????????????# #????????????????? | | ????????????????????????????#[! #????????????????? | | ????????????????????????????+ = #????????????????? | | ????????????????????????????#[!%#????????????????? | | ??????????????????????####### #????????????????? | | ??????????????????#???# !!## #????????????????? | | ?????????????????## ## !=## #????????????????? | | ?????????????????# Y !=* #????????????????? | | ?????????? @] #????????????????? | | ?????????? g g #????????????????? | | ???????????####### #; ## #????????????????? | | ?????????????????# ?#; ## #????????????????? | | ?????????????????" ? Y "????????????????? | | ??????????????????? % "????????????????? | | ?????????????????? "????????????????? | | ?????????????????" "????????????????? | | ?????????????????# ;#^ ## #????????????????? | | ?????????????????# ;# #? #????????????????? | | ????????????????? ? ????????????????? | | ???????????????? ? ? ????????????????? | | ????????????????## ? ????????????????? | | ??????????????????# ??#""""#?####????????????????? | | ?????????????????????????????????????????????????? | | ?????????????????????????????????????????????????? | | ?????????????????????????????????????????????????? | | ?????????????????????????????????????????????????? | | ?????????????????????????????????????????????????? | | ?????????????????????????????????????????????????? | | ?????????????????????????????????????????????????? | | ?????????????????????????????????????????????????? | | ?????????????????????????????????????????????????? | | ?????????????????????????????????????????????????? | | ?????????????????????????????????????????????????? | +----------------------------------------------------+ Best States ------------- Heat Dissipation 45 Energy Generation 14 Energy Capacity 250 Matter Stores 300 Matter Capacity 300 Sight Range 16 Terrain Scan Range 16 Terrain Scan Density 10 ECM Strength 1 Additional Mass Support 9 Core Shielding 20 Weapon Shielding 33 Evasion (%) 55 Item Schematics ----------------- Carbon-fiber Leg | -8/Materials | Hacked Hacking Suite | -8/Materials | Hacked Hvy. Assault Cannon | -8/Materials | Hacked Robot Schematics ------------------ G-34 Mercenary | -10/Materials | Hacked Y-45 Defender | -9/Materials | Hacked S-10 Pest | -9/Materials | Hacked G-47 Trooper | -8/Materials | Hacked Fabricated ------------ Nothing Alien Tech Used ----------------- None Achievements -------------- None Challenges ------------ None Game ------ Seed CouplerNetworkCompressor Manual? 0 Play Time 00:29:36 Cumulative 28.3 hours Start 2024.05.15 @ 02:04:15 End 2024.05.15 @ 02:32:20 Sessions 1 Manual Loads 0 Difficulty Rogue Special Mode None Game No. 46 Rogue 46 Adventurer 0 Explorer 0 Win Type - Total 0 Types 0/0/0/0/0/0/0/0/0 Lore% 19 Gallery% 26 Achievement% 24 Wizard Run 0 Options --------- Layout 0 ASCII 0 Keyboard 0 Movement Mouse Keybinds 0 Fullscreen 2 Font 18/SmallcapsGlow Map View 38x25 Zoom Use 97% Tactical HUD 1 Map Filters NONE Filters NONE Steam 1 RUN: e8d0b65e-3999-44f9-9dca-5199b6bd47ff